Cogmind - Beta 11.1 @@@ ROGUE MODE // 2022.10.10 @ 16:26:16 Player: Cactushurt Result: Destroyed by S-10 Pest with Light Assault Rifle Performance ------------- Evolutions (1) 500 Regions Visited (3) 600 Robots Destroyed (5) 25 Value Destroyed (47) 47 Prototype IDs (3) 60 Alien Tech Used (0) 0 Bonus (60) 60 TOTAL SCORE: 1292 Bonus ------- Follower Combat Kills 60 Cogmind --------- Core Integrity 0/400 Matter 300/300 Energy 99/100 System Corruption 4% Temperature Cool (0) Movement Core (50) Location -9/Materials Parts ------- > --- POWER (2) -------- (None) > --- PROPULSION (3) --- (None) > --- UTILITY (2) ------ (None) > --- WEAPON (2) ------- (None) > --- INVENTORY (5) ---- Flight Unit Improved EM Shotgun Datajack Peak State ------------ > --- POWER ------------ Light Ion Engine > --- PROPULSION ------- Flight Unit Flight Unit Flight Unit > --- UTILITY ---------- ECM Suite > --- WEAPON ----------- Improved EM Shotgun > --- INVENTORY -------- Flight Unit [Rating: 8] Favorites ----------- Power Light Ion Engine Engine Light Ion Engine Propulsion Flight Unit Leg Aluminum Leg Flight Unit Flight Unit Utility ECM Suite Device ECM Suite Storage Small Storage Unit Weapon Light Assault Rifle Energy Gun Improved EM Shotgun Ballistic Gun Light Assault Rifle Special Melee Weapon Datajack Build | -11 -10 -10 -9 ------- Run | Scr Mat Min Mat Slots Evolved 2 | . . . 2 Power 1 | . . . 1 Propulsion 1 | . . . 1 Utility . | . . . . Weapon . | . . . . Parts Attached 21 | 5 8 4 4 Power 3 | 1 1 1 . Engine 3 | 1 1 1 . Core . | . . . . Reactor . | . . . . Propulsion 8 | 2 3 2 1 Treads . | . . . . Leg 2 | 2 . . . Wheel . | . . . . Hover . | . . . . Flight 6 | . 3 2 1 Utility 3 | 1 1 1 . Device 2 | . 1 1 . Storage 1 | 1 . . . Processor . | . . . . Hackware . | . . . . Protection . | . . . . Artifact . | . . . . Weapon 7 | 1 3 . 3 Energy Gun 2 | . . . 2 Energy Cannon . | . . . . Ballistic Gun 4 | 1 3 . . Ballistic Cannon . | . . . . Launcher . | . . . . Special Weapon . | . . . . Impact Weapon . | . . . . Slashing Weapon . | . . . . Piercing Weapon . | . . . . Special Melee Weapon 1 | . . . 1 Unidentified Prototypes 1 | . . . 1 Parts Lost 7 | . . 2 5 Power 2 | . . 1 1 Propulsion 4 | . . 1 3 Utility 1 | . . . 1 Weapon . | . . . . Highest Loss Streak 3 | . . 2 3 To Critical Strikes . | . . . . Average Slot Usage (%) 56 | . 71 56 34 Engine 11 | . 13 13 5 Leg 3 | . 6 . . Flight 21 | . 21 27 16 Device 10 | . 8 14 8 Storage 6 | . 14 1 . Ballistic Gun 2 | . 6 . . Naked Turns 46 | . . . 46 Heaviest Build 13 | 11 13 10 8 Greatest Support 20 | 20 20 8 12 Greatest Overweight (x) 1 | . 1 1 . Average Overweight (x) . | . . . . Largest Inventory Capacity 8 | 8 8 8 5 Average Capacity 6 | 7 8 5 5 Most Carried 8 | 5 8 6 4 Average Carried 3 | 1 4 3 2 Final Capacity 8 | 8 8 5 5 Final Carried 6 | 2 6 3 3 Class Distribution -------------------- 100% | Mutant Dominant Class ---------------- Mutant | -10/Materials Mutant | -10/Mines Mutant | -9/Materials Resources | -11 -10 -10 -9 ----------- Run | Scr Mat Min Mat Matter Collected 415 | 250 53 112 . Remotely . | . . . . Salvage Created 82 | . 82 . . Parts 8 | . 8 . . Haulers Intercepted . | . . . . Recyclers Shooed . | . . . . Parts Field Recycled . | . . . . Retrieved Matter . | . . . . Parts Self-Destructed . | . . . . Prevented . | . . . . Kills | -11 -10 -10 -9 ------- Run | Scr Mat Min Mat Combat Hostiles Destroyed 3 | . 3 . . Guns 3 | . 3 . . Classes Destroyed 3 | . 3 . . Worker 1 | . 1 . . Watcher 1 | . 1 . . Swarmer 3 | . 3 . . Best Kill Streak 3 | . 3 . . Combat Bots Only 3 | . 3 . . Max Kills in Single Turn 1 | . 1 . . Gunslinging . | . . . . Exploded . | . . . . Melee . | . . . . Uniques/NPCs Destroyed . | . . . . Combat | -11 -10 -10 -9 -------- Run | Scr Mat Min Mat Damage Taken 948 | . 154 258 536 Core 597 | . 51 142 404 Absorbed by Shields . | . . . . Core Remaining (%) 61 | 100 . 22 . Volleys Fired 24 | . 22 . 2 Largest 1 | . 1 . 1 Hottest 45 | . 23 . 45 Shots Fired 24 | . 22 . 2 Gun 24 | . 22 . 2 Cannon . | . . . . Launcher . | . . . . Special . | . . . . Kinetic 22 | . 22 . . Thermal . | . . . . Explosive . | . . . . Electromagnetic 2 | . . . 2 Robot Hit Streak 6 | . 6 . 1 Robot Miss Streak 4 | . 4 . 2 Penetration Max . | . . . . Secondary Targets . | . . . . Shots Hit Robots 18 | . 16 . 2 Core Hits 15 | . 9 . 6 Critical Kills . | . . . . Critical Parts Destroyed . | . . . . Critical Strikes . | . . . . Melee Attacks 5 | . . . 5 Impact . | . . . . Slashing . | . . . . Piercing . | . . . . Sneak Attacks . | . . . . Combat Hostiles . | . . . . Follow-up Attacks . | . . . . Damage Inflicted 199 | . 145 . 54 Guns 163 | . 145 . 18 Cannons . | . . . . Explosions . | . . . . Melee . | . . . . Ramming 36 | . . . 36 Kinetic 145 | . 145 . . Thermal . | . . . . Explosive . | . . . . Electromagnetic 18 | . . . 18 Impact . | . . . . Slashing . | . . . . Piercing . | . . . . Highest Corruption 4 | . . . 4 Average Corruption 4 | . . . 4 Corruption Purged . | . . . . Corruption Blocked . | . . . . Overload Shots . | . . . . Overflow Damage . | . . . . Projectiles . | . . . . Explosions . | . . . . Melee . | . . . . Knockbacks 1 | . . . 1 Impact 1 | . . . 1 Kinetic . | . . . . Secondary . | . . . . Self-Inflicted Damage 15 | . . . 15 Shots . | . . . . Rammed 11 | . . . 11 Targets Rammed 11 | . . . 11 Kicked . | . . . . Crushed . | . . . . Highest Temperature 6 | . . . 6 Average Temperature 4 | . . . 4 Received Heat Transfer 174 | . . 39 135 Siege Activations . | . . . . Robots Corrupted . | . . . . Combat Hostiles . | . . . . Parts Fried . | . . . . Impact Corruptions . | . . . . Robots Melted . | . . . . Combat Hostiles . | . . . . Parts Melted . | . . . . Heat Transferred . | . . . . Parts Sabotaged . | . . . . Parts Stolen . | . . . . Parts Stripped . | . . . . Power Chain Reactions . | . . . . Missiles Intercepted . | . . . . Alert | -11 -10 -10 -9 ------- Run | Scr Mat Min Mat Peak Influence 282 | . 142 244 282 Initial 92 | . . 55 92 Average 120 | . 98 160 180 Maximum Alert Level 1 | . . 1 1 Low Security (%) 79 | 100 100 53 57 Level 1 20 | . . 46 42 Level 2 . | . . . . Level 3 . | . . . . Level 4 . | . . . . Level 5 . | . . . . High Security . | . . . . Max Security . | . . . . Squads Dispatched 2 | . . . 2 Investigation . | . . . . Extermination . | . . . . Reinforcement 2 | . . . 2 Assault . | . . . . Garrison . | . . . . Intercept . | . . . . Searches Triggered . | . . . . Construction Impeded . | . . . . Haulers Reinforced . | . . . . Active Scanning Responses . | . . . . Cargo Convoy Interrupts . | . . . . Stealth | -11 -10 -10 -9 --------- Run | Scr Mat Min Mat Distress Signals 2 | . . . 2 Communications Jammed . | . . . . Distress Signals . | . . . . Times Spotted 49 | . 7 15 27 Peak Tracking Total 15 | . 3 5 15 Tactical Retreats 10 | . 1 5 4 Traps | -11 -10 -10 -9 ------- Run | Scr Mat Min Mat Traps Triggered . | . . . . Indirectly . | . . . . Trap Hack Attempts . | . . . . Triggered . | . . . . Disarmed . | . . . . Reprogrammed . | . . . . Reused . | . . . . Traps Extracted . | . . . . Installed . | . . . . Triggered . | . . . . Machines | -11 -10 -10 -9 ---------- Run | Scr Mat Min Mat Machines Disabled . | . . . . Max in Single Turn . | . . . . Machines Sabotaged . | . . . . Garrisons Compromised . | . . . . Overloaded Fab Kills . | . . . . Hacking | -11 -10 -10 -9 --------- Run | Scr Mat Min Mat Machines Accessed 4 | . 1 . 3 Terminals 3 | . 1 . 2 Fabricators . | . . . . Repair Stations . | . . . . Recycling Units 1 | . . . 1 Scanalyzers . | . . . . Garrison Access . | . . . . Total Hacks 9 | . 4 . 5 Successful 7 | . 3 . 4 Failed 2 | . 1 . 1 Catastrophic . | . . . . Database Lockouts . | . . . . Manual . | . . . . Terminals 7 | . 4 . 3 Fabricators . | . . . . Repair Stations . | . . . . Recycling Units 2 | . . . 2 Scanalyzers . | . . . . Garrison Access . | . . . . Terminal Hacks 5 | . 3 . 2 Robot Analysis 1 | . 1 . . Prototype ID Bank 1 | . 1 . . Alert Level 1 | . . . 1 Dispatch Records 1 | . 1 . . Recall Reinforcements 1 | . . . 1 Fabricator Hacks . | . . . . Repair Station Hacks . | . . . . Recycling Unit Hacks 2 | . . . 2 Recycle Component 1 | . . . 1 Report Inventory 1 | . . . 1 Scanalyzer . | . . . . Garrison Access Hacks . | . . . . Unauthorized Hacks . | . . . . Terminals . | . . . . Fabricators . | . . . . Repair Stations . | . . . . Recycling Units . | . . . . Scanalyzers . | . . . . Garrison Access . | . . . . Data Cores Recovered . | . . . . Used . | . . . . Hacking Detections 2 | . 1 . 1 Full Trace Events . | . . . . Feedback Events . | . . . . Feedback Blocked . | . . . . Robot Schematics Acquired . | . . . . Robots Built . | . . . . Authchips . | . . . . Time . | . . . . Total Robot Build Rating . | . . . . Part Schematics Acquired . | . . . . Parts Built . | . . . . Authchips . | . . . . Time . | . . . . Total Part Build Rating . | . . . . Parts Repaired . | . . . . Time . | . . . . Parts Recycled 1 | . . . 1 Recycled Matter . | . . . . Retrieved Matter . | . . . . Retrieved Components . | . . . . Parts Scanalyzed . | . . . . Part Schematics Acquired . | . . . . Parts Damaged . | . . . . Bothacking | -11 -10 -10 -9 ------------ Run | Scr Mat Min Mat Used RIF Installer . | . . . . Robots Hacked 1 | . . . 1 Non-combat . | . . . . Combat 1 | . . . 1 Robot Hacks Applied 1 | . . . 1 parse_system 1 | . . . 1 Relay Couplers Released . | . . . . Fabnet Peak Effective % . | . . . . Robots Rewired . | . . . . Allies Hacked . | . . . . Hacks Repelled . | . . . . Allies | -11 -10 -10 -9 -------- Run | Scr Mat Min Mat Total Allies 3 | . . 3 . Largest Group 3 | . . 3 . Highest-Rated Group 40 | . . 40 . Highest-Rated Ally 16 | . . 16 . Total Orders 2 | . . 2 . GUARD 2 | . . 2 . Ally Attacks 16 | . . 16 . Total Damage 156 | . . 156 . Kills 2 | . . 2 . Allies Corrupted . | . . . . Allies Melted . | . . . . Intel | -11 -10 -10 -9 ------- Run | Scr Mat Min Mat Robot Analysis Total 1 | . 1 . . Derelict Logs Recovered 1 | . . 1 . Drone Launches . | . . . . Drone Recoveries . | . . . . Exploration | -11 -10 -10 -9 ------------- Run | Scr Mat Min Mat Turns Passed 748 | 90 305 163 190 Spaces Moved 888 | 74 189 329 296 Core 91 | 15 . . 76 Treads . | . . . . Legs 94 | 59 35 . . Wheels . | . . . . Hover . | . . . . Flight 703 | . 154 329 220 Fastest Speed 34 | 50 37 37 34 Average Speed 56 | 105 92 40 40 Slowest Speed 120 | 120 120 117 50 Overloaded Moves . | . . . . Propulsion Burnouts . | . . . . Robots Hopped 9 | . 1 3 5 Cave-ins Triggered . | . . . . Exploration Rate (%) 33 | 5 27 70 31 Regions Visited 3 Branch Regions 1 Pre-discovered Areas . | . . . . Known Exits Taken . | . . . . Unknown Exits Taken 3 | 1 1 1 . Scrap Searched 1 | . . 1 . Spaces Dug . | . . . . Terrain Destroyed . | . . . . Melee . | . . . . Projectile . | . . . . AOE . | . . . . Terrain Rammed . | . . . . Walls Destroyed . | . . . . Machines Disabled . | . . . . Actions | -11 -10 -10 -9 --------- Run | Scr Mat Min Mat Total 1107 | 85 305 357 360 Wait 124 | . 62 24 38 Move 867 | 73 186 322 286 Hop 9 | . 1 3 5 Pick Up 22 | 7 11 . 4 Fast Attach . | . . . . Attach 21 | 5 8 4 4 Detach 13 | . 8 2 3 Swap . | . . . . Drop 11 | . 7 2 2 Fire 24 | . 22 . 2 Melee 5 | . . . 5 Ram 11 | . . . 11 Kick . | . . . . Crush . | . . . . Escape Stasis . | . . . . Rewire . | . . . . Trap . | . . . . Miscellaneous . | . . . . Route ------- -11/Scrapyard -10/Materials -10/Mines (discovered 2 exits: *Mat x2) -9/Materials (discovered 1 exit: Mat) History --------- Turn | Location | Event 22 | -11/Scrapyard | Discovered new exit (range 16) 91 | -11/Scrapyard | Entered Materials 308 | -10/Materials | Build established: Mutant 382 | -10/Materials | Discovered new exit (range 9) 396 | -10/Materials | Entered Mines 420 | -10/Mines | Core integrity fell below 50% 460 | -10/Mines | Discovered new exit (range 9) 465 | -10/Mines | Assisted by bots powering up and referring to "LRC-V3" 506 | -10/Mines | Learned location of 1 exit from Materials 555 | -10/Mines | Discovered new exit (range 9) 559 | -10/Mines | Entered Materials 559 | -9/Materials | Evolved 2 slots: Power x1, Propulsion x1 560 | -9/Materials | Identified exit to Materials 701 | -9/Materials | Core integrity fell below 50% 704 | -9/Materials | Core integrity fell below 20% 734 | -9/Materials | Lost 3 parts (2n1u) 749 | -9/Materials | Destroyed by S-10 Pest with Light Assault Rifle Last Messages --------------- 00688_ K-01 Serf cleans the Processing Tank. 00695_ K-01 Serf collects debris. 00698_ K-01 Serf cleans the Processing Tank. 00700_ Flight Unit destroyed. 00700_ System corrupted by crushing effect (+4). 00700_ Slammed into Y-45 Defender. 00702_ K-01 Serf collects debris. 00702_ Slammed into Y-45 Defender. 00702_ Destabilizing: Core damaged (-16). 00703_ ECM Suite destroyed. 00703_ Slammed into G-34 Mercenary. 00705_ Slammed into O-16 Technician. 00727_ Connecting with Terminal... >>Alert(Check) Current Alert Level: 1-D 00736_ Slammed into R-06 Scavenger. 00736_ R-06 Scavenger knocked back. 00738_ Slammed into R-06 Scavenger. 00743_ Slammed into T-07 Excavator. 00748_ Slammed into S-10 Pest. Map ----- +----------------------------------------------------+ | ???????????????????????????????????????? | | ???????????????????????????????????????? | | ???????????????????????????????????????? | | ##?????????????????????????????????????? | | #?????????????????????????????????????? | | #?????????????????????????????????????? | | #???##????????????????????????????????? | | #??# ????????????????????????????????? | | #??# """??#???????????????????????????? | | #??# """ #???????????????????????????? | | ????# """ #???????????? ????????????? | | ????# """ #???????????? ????????????? | | ##### """ #???????????# ????????????? | | # #???????????# +???????????? | | + """ #???????????# #???????????? | | # """ #???????????+ #???????????? | | ### # """ #???????????# #???????????? | | ??# # """ #???????????# #???????????? | | ??# # """ #??????????## ##??????????? | | ??# # #??????????# #####??????? | | ###+########??????????# ???????? | | #??????????????+ Y ??